Cogmind - Beta 10.2 *** ADVENTURER MODE // 2021.12.13 @ 20:01:11 Player: TLFP Result: Self-destructed Performance ------------- Evolutions (3) 1500 Regions Visited (9) 1800 Robots Destroyed (68) 340 Value Destroyed (2198) 2198 Prototype IDs (8) 160 Alien Tech Used (0) 0 Bonus (518) 518 TOTAL SCORE: 6516 Bonus ------- High Alert Combat Kills 18 Entered Garrisons 200 Aligned with FarCom 300 Cogmind --------- Core Integrity 365/700 Matter 254/300 Energy 100/100 System Corruption 15% Temperature Cool (0) Movement Core (50) Location -7/Waste Parts ------- > --- POWER (1) -------- (None) > --- PROPULSION (4) --- (None) > --- UTILITY (6) ------ (None) > --- WEAPON (2) ------- (None) > --- INVENTORY (4) ---- Humpback Heavy Armor Plating Peak State ------------ > --- POWER ------------ Reinforced Deuterium Engine > --- PROPULSION ------- Armored Treads Advanced Treads Improved Medium Treads Improved Medium Treads > --- UTILITY ---------- Humpback Kinecellerator Improved Power Shielding > --- WEAPON ----------- AWS/Thermal > --- INVENTORY -------- Ion Engine Ion Engine Light Deuterium Engine Light Nuclear Core Light Treads Advanced Treads Advanced Treads Advanced Treads Aluminum Leg Aluminum Leg Improved Airjet Improved Airjet Improved Airjet Cryofiber Web Improved Cooling System Small Storage Unit Medium Storage Unit Humpback Compact Battery EM Pulse Gun Heavy Plasma Cannon Grenade Launcher Mining Laser [Rating: 50] Favorites ----------- Power Reinforced Deuterium Engine Engine Reinforced Deuterium Engine Power Core Light Nuclear Core Propulsion Improved Medium Treads Treads Improved Medium Treads Leg Aluminum Leg Hover Unit Improved Airjet Utility Humpback Device Cryofiber Web Storage Humpback Processor Advanced Signal Interpreter Protection Light Armor Plating Weapon AWS/Thermal Energy Gun AWS/Thermal Energy Cannon Heavy Plasma Cannon Ballistic Gun Light Assault Rifle Launcher Advanced EMP Blaster Special Weapon Mining Laser Slashing Weapon Axe Build | -11 -10 -10 -10 -9 -8 -8 -8 -7 -7 ------- Run | Scr Mat Min Exi Min Mat Gar Mat Fac Was Slots Evolved 6 | . . . . . 4 . . 2 . Power . | . . . . . . . . . . Propulsion 2 | . . . . . 2 . . . . Utility 4 | . . . . . 2 . . 2 . Weapon . | . . . . . . . . . . Parts Attached 49 | . 1 3 4 2 9 5 10 11 4 Power 4 | . . 1 . . 1 . 1 . 1 Engine 3 | . . 1 . . . . 1 . 1 Core 1 | . . . . . 1 . . . . Reactor . | . . . . . . . . . . Propulsion 14 | . . . . 2 5 2 1 3 1 Treads 13 | . . . . 2 4 2 1 3 1 Leg . | . . . . . . . . . . Wheel . | . . . . . . . . . . Hover 1 | . . . . . 1 . . . . Flight . | . . . . . . . . . . Utility 14 | . 1 . 1 . 3 1 4 4 . Device 2 | . . . . . 1 . 1 . . Storage 2 | . . . 1 . 1 . . . . Processor 2 | . . . . . . . . 2 . Hackware . | . . . . . . . . . . Protection 8 | . 1 . . . 1 1 3 2 . Artifact . | . . . . . . . . . . Weapon 17 | . . 2 3 . . 2 4 4 2 Energy Gun 5 | . . . 1 . . 1 3 . . Energy Cannon 2 | . . . 1 . . . 1 . . Ballistic Gun . | . . . . . . . . . . Ballistic Cannon . | . . . . . . . . . . Launcher 4 | . . 1 . . . . . 3 . Special Weapon 4 | . . 1 . . . 1 . 1 1 Impact Weapon . | . . . . . . . . . . Slashing Weapon 2 | . . . 1 . . . . . 1 Piercing Weapon . | . . . . . . . . . . Special Melee Weapon . | . . . . . . . . . . Unidentified Prototypes 6 | . . . 3 . 1 . 1 1 . Parts Lost 14 | . . . . . . 1 2 2 9 Power 1 | . . . . . . . 1 . . Propulsion 5 | . . . . . . . . 1 4 Utility 5 | . . . . . . 1 1 . 3 Weapon 3 | . . . . . . . . 1 2 Highest Loss Streak 9 | . . . . . . 1 1 1 9 Average Slot Usage (%) 81 | . 87 100 85 71 67 81 83 85 70 Engine 8 | . 14 14 14 14 . . 8 7 3 Core 1 | . . . . . 8 9 . . . Treads 21 | . . . . 18 29 36 36 29 21 Leg 8 | . 28 28 28 9 . . . . . Device 4 | . . . . . 3 9 8 7 6 Storage 10 | . 14 14 14 14 9 9 9 7 6 Processor 2 | . . . . . . . . 9 14 Protection 7 | . 2 14 10 . 6 9 9 6 5 Energy Gun 6 | . . . 10 14 9 8 8 1 . Energy Cannon 2 | . . . . . . . 2 7 4 Ballistic Gun 3 | . 28 27 3 . . . . . . Launcher 1 | . . . . . . . . 5 4 Naked Turns 8 | . . . . . . . . . 8 Heaviest Build 119 | 11 12 12 93 93 100 100 110 119 119 Greatest Support 102 | 20 20 20 20 40 82 102 102 102 94 Greatest Overweight (x) 26 | . . . 4 4 2 1 1 1 26 Average Overweight (x) . | . . . . 2 1 . . 1 2 Largest Inventory Capacity 24 | . 6 6 24 24 24 24 24 24 24 Average Capacity 20 | . 6 6 10 24 24 24 24 24 22 Most Carried 24 | . 6 6 11 12 23 24 24 24 24 Average Carried 16 | . 5 5 7 11 17 23 23 23 21 Final Capacity 24 | 6 6 6 24 24 24 24 24 24 4 Final Carried 24 | 6 5 6 11 12 23 24 24 24 4 Class Distribution -------------------- 62% | Hauler-Mutant 22% | Mutant 15% | Scavenger-Mutant Dominant Class ---------------- Mutant | -10/Materials Mutant | -10/Mines Mutant | -10/Exiles Hauler-Mutant | -9/Mines Hauler-Mutant | -8/Materials Hauler-Mutant | -8/Garrison Hauler-Mutant | -8/Materials Scavenger-Mutant | -7/Factory Hauler-Mutant | -7/Waste Resources | -11 -10 -10 -10 -9 -8 -8 -8 -7 -7 ----------- Run | Scr Mat Min Exi Min Mat Gar Mat Fac Was Matter Collected 758 | 184 . 48 . 88 80 55 24 279 . Remotely . | . . . . . . . . . . Salvage Created 2501 | . . 46 . 129 568 392 474 892 . Parts 146 | . . 8 . 4 30 18 26 60 . Haulers Intercepted . | . . . . . . . . . . Recyclers Shooed 1 | . . . . . . . . 1 . Parts Field Recycled . | . . . . . . . . . . Retrieved Matter . | . . . . . . . . . . Parts Self-Destructed . | . . . . . . . . . . Prevented . | . . . . . . . . . . Kills | -11 -10 -10 -10 -9 -8 -8 -8 -7 -7 ------- Run | Scr Mat Min Exi Min Mat Gar Mat Fac Was Combat Hostiles Destroyed 51 | . . 3 . 3 11 7 9 18 . Guns 31 | . . 3 . 3 11 7 7 . . Cannons 11 | . . . . . . . 2 9 . AOE 9 | . . . . . . . . 9 . Classes Destroyed 11 | . . 1 . 1 4 2 . 3 . Worker 6 | . . . . . 1 . . 5 . Builder 4 | . . . . . . . . 4 . Recycler 1 | . . . . . . . . 1 . Watcher 6 | . . . . . 3 . 2 1 . Swarmer 19 | . . 3 . . 3 . 2 11 . Grunt 15 | . . . . 3 4 3 1 4 . Brawler 1 | . . . . . 1 . . . . Sentry 10 | . . . . . 3 2 4 1 . Hunter 4 | . . . . . . 1 2 1 . Programmer 1 | . . . . . . . . 1 . Behemoth 1 | . . . . . . 1 . . . Best Kill Streak 12 | . . 3 . 3 5 5 4 12 . Combat Bots Only 5 | . . 3 . 3 4 5 3 5 . Max Kills in Single Turn 4 | . . 1 . 1 1 1 1 4 . Gunslinging . | . . . . . . . . . . Exploded 3 | . . . . . . . . 3 . Melee . | . . . . . . . . . . Uniques/NPCs Destroyed . | . . . . . . . . . . Combat | -11 -10 -10 -10 -9 -8 -8 -8 -7 -7 -------- Run | Scr Mat Min Exi Min Mat Gar Mat Fac Was Damage Taken 2577 | . . 107 . 34 152 412 570 714 588 Core 483 | . . 31 . 14 19 58 26 109 226 Absorbed by Shields . | . . . . . . . . . . Core Remaining (%) 87 | 100 . . . 82 . . 81 . . Volleys Fired 42 | . . 10 . . . 1 7 24 . Largest 2 | . . 2 . . . 1 2 2 . Hottest 190 | . . 40 . . . 100 130 190 . Shots Fired 222 | . . 20 . 12 52 44 46 48 . Gun 167 | . . 20 . 12 52 43 39 1 . Cannon 31 | . . . . . . . 7 24 . Launcher 22 | . . . . . . . . 22 . Special 2 | . . . . . . 1 . 1 . Kinetic 20 | . . 20 . . . . . . . Thermal 172 | . . . . 12 52 44 39 25 . Explosive 2 | . . . . . . . . 2 . Electromagnetic 28 | . . . . . . . 7 21 . Robot Hit Streak 32 | . . 3 . 13 25 32 24 15 . Robot Miss Streak 3 | . . 3 . . 1 1 2 2 . Penetration Max . | . . . . . . . . . . Secondary Targets 1 | . . 1 . . . . . . . Max Gunslinging Chain 1 | . . 1 . . . . . . . Autonomous 140 | . . . . 12 52 43 33 . . Shots Hit Robots 182 | . . 6 . 12 49 40 43 28 4 Core Hits 90 | . . 4 . 4 18 11 15 38 . Critical Hits 5 | . . . . . . . 1 3 1 Critical Kills 2 | . . . . . . . . 2 . Critical Parts Destroyed 2 | . . . . . . . 1 1 . Melee Attacks 4 | . . . . . . . . . 4 Impact . | . . . . . . . . . . Slashing 4 | . . . . . . . . . 4 Piercing . | . . . . . . . . . . Sneak Attacks . | . . . . . . . . . . Combat Hostiles . | . . . . . . . . . . Follow-up Attacks . | . . . . . . . . . . Damage Inflicted 6037 | . . 48 . 359 1393 1031 1153 1992 61 Guns 3785 | . . 48 . 359 1393 1031 954 . . Cannons 750 | . . . . . . . 199 551 . Explosions 1441 | . . . . . . . . 1441 . Melee 61 | . . . . . . . . . 61 Ramming . | . . . . . . . . . . Kinetic 48 | . . 48 . . . . . . . Thermal 4461 | . . . . 359 1393 1031 1068 610 . Explosive 452 | . . . . . . . . 452 . Electromagnetic 1015 | . . . . . . . 85 930 . Impact . | . . . . . . . . . . Slashing 61 | . . . . . . . . . 61 Piercing . | . . . . . . . . . . Highest Corruption 15 | . . . . . . . . 3 15 Average Corruption 5 | . . . . . . . . 2 9 Corruption Purged . | . . . . . . . . . . Effects 5 | . . . . . . . . 1 4 Message Errors 2 | . . . . . . . . 1 1 Matter Fused 1 | . . . . . . . . . 1 Heat Flow Errors 1 | . . . . . . . . . 1 Parts Rejected 1 | . . . . . . . . . 1 Overload Shots . | . . . . . . . . . . Overflow Damage 107 | . . . . . . . 16 91 . Projectiles 25 | . . . . . . . 16 9 . Explosions 82 | . . . . . . . . 82 . Melee . | . . . . . . . . . . Knockbacks . | . . . . . . . . . . Impact . | . . . . . . . . . . Kinetic . | . . . . . . . . . . Secondary . | . . . . . . . . . . Self-Inflicted Damage 113 | . . . . . . . . 113 . Shots 7 | . . . . . . . . 7 . Rammed . | . . . . . . . . . . Targets Rammed . | . . . . . . . . . . Kicked . | . . . . . . . . . . Crushed . | . . . . . . . . . . Highest Temperature 441 | . . 4 . . . 24 441 273 18 Average Temperature 134 | . . 2 . . . 13 212 87 18 Received Heat Transfer 453 | . . . . 24 45 87 189 108 . Effects 3 | . . . . . . . 3 . . Energy Bleed 3 | . . . . . . . 3 . . Siege Activations . | . . . . . . . . . . Robots Corrupted . | . . . . . . . . . . Combat Hostiles . | . . . . . . . . . . Parts Fried 5 | . . . . . . . . 5 . Impact Corruptions . | . . . . . . . . . . Robots Melted . | . . . . . . . . . . Combat Hostiles . | . . . . . . . . . . Parts Melted 10 | . . . . 1 . 1 6 2 . Heat Transferred 5875 | . . . . 444 1776 1295 1410 950 . Parts Sabotaged . | . . . . . . . . . . Parts Stolen . | . . . . . . . . . . Parts Stripped . | . . . . . . . . . . Power Chain Reactions 3 | . . . . . . . . 3 . Missiles Intercepted . | . . . . . . . . . . Alert | -11 -10 -10 -10 -9 -8 -8 -8 -7 -7 ------- Run | Scr Mat Min Exi Min Mat Gar Mat Fac Was Peak Influence 494 | . 8 72 . 70 251 393 250 494 144 Initial 165 | . . 2 . . 22 123 165 54 144 Average 124 | . 7 47 . 3 139 251 146 172 122 Maximum Alert Level 2 | . . . . . 1 1 1 2 . Low Security (%) 71 | . 100 100 . 100 62 26 65 61 100 Level 1 26 | . . . . . 37 73 34 32 . Level 2 1 | . . . . . . . . 6 . Level 3 . | . . . . . . . . . . Level 4 . | . . . . . . . . . . Level 5 . | . . . . . . . . . . High Security . | . . . . . . . . . . Max Security . | . . . . . . . . . . Squads Dispatched 11 | . 1 . . . . . 2 8 . Investigation 3 | . 1 . . . . . 1 1 . Extermination 2 | . . . . . . . . 2 . Reinforcement 6 | . . . . . . . 1 5 . Assault . | . . . . . . . . . . Garrison . | . . . . . . . . . . Intercept . | . . . . . . . . . . Construction Impeded 3 | . . . . . . . . 3 . Haulers Reinforced . | . . . . . . . . . . Stealth | -11 -10 -10 -10 -9 -8 -8 -8 -7 -7 --------- Run | Scr Mat Min Exi Min Mat Gar Mat Fac Was Distress Signals 5 | . . . . . 2 . 1 2 . Communications Jammed . | . . . . . . . . . . Distress Signals . | . . . . . . . . . . Times Spotted 69 | . . 3 . 3 17 7 13 25 1 Peak Tracking Total 5 | . . 3 . 3 3 5 4 5 1 Tactical Retreats 4 | . . . . . 2 . . 2 . Traps | -11 -10 -10 -10 -9 -8 -8 -8 -7 -7 ------- Run | Scr Mat Min Exi Min Mat Gar Mat Fac Was Traps Triggered 6 | . 1 . . . . 3 . 2 . Indirectly . | . . . . . . . . . . Trap Hack Attempts . | . . . . . . . . . . Triggered . | . . . . . . . . . . Disarmed . | . . . . . . . . . . Reprogrammed . | . . . . . . . . . . Reused . | . . . . . . . . . . Traps Extracted . | . . . . . . . . . . Installed . | . . . . . . . . . . Triggered . | . . . . . . . . . . Machines | -11 -10 -10 -10 -9 -8 -8 -8 -7 -7 ---------- Run | Scr Mat Min Exi Min Mat Gar Mat Fac Was Machines Disabled 11 | . . . . . . . . 11 . Max in Single Turn 4 | . . . . . . . . 4 . Machines Sabotaged . | . . . . . . . . . . Garrisons Compromised . | . . . . . . . . . . Overloaded Fab Kills . | . . . . . . . . . . Fab Network Shutdowns . | . . . . . . . . . . Hacking | -11 -10 -10 -10 -9 -8 -8 -8 -7 -7 --------- Run | Scr Mat Min Exi Min Mat Gar Mat Fac Was Machines Accessed 11 | . 1 . . . 3 . 3 4 . Terminals 8 | . 1 . . . 2 . 3 2 . Fabricators . | . . . . . . . . . . Repair Stations 2 | . . . . . . . . 2 . Recycling Units . | . . . . . . . . . . Scanalyzers . | . . . . . . . . . . Garrison Access 1 | . . . . . 1 . . . . Total Hacks 25 | . 2 . . . 7 . 7 9 . Successful 14 | . 1 . . . 3 . 4 6 . Failed 11 | . 1 . . . 4 . 3 3 . Catastrophic . | . . . . . . . . . . Database Lockouts . | . . . . . . . . . . Manual 10 | . . . 1 . . . 5 4 . Terminals 19 | . 2 . . . 5 . 7 5 . Fabricators . | . . . . . . . . . . Repair Stations 4 | . . . . . . . . 4 . Recycling Units . | . . . . . . . . . . Scanalyzers . | . . . . . . . . . . Garrison Access 2 | . . . . . 2 . . . . Terminal Hacks 7 | . 1 . . . 2 . 3 1 . Record 1 | . . . . . . . . 1 . Robot Analysis 1 | . . . . . . . 1 . . Prototype ID Bank 1 | . . . . . . . 1 . . Unreport Threat 1 | . . . . . . . 1 . . Maintenance Status 1 | . . . . . 1 . . . . Registered Components 1 | . . . . . 1 . . . . Registered Prototypes 1 | . 1 . . . . . . . . Fabricator Hacks . | . . . . . . . . . . Repair Station Hacks 4 | . . . . . . . . 4 . Scan Component 2 | . . . . . . . . 2 . Repair 2 | . . . . . . . . 2 . Recycling Unit Hacks . | . . . . . . . . . . Scanalyzer . | . . . . . . . . . . Garrison Access Hacks 1 | . . . . . 1 . . . . Unlock Access 1 | . . . . . 1 . . . . Unauthorized Hacks 2 | . . . . . . . 1 1 . Terminals 2 | . . . . . . . 1 1 . Botnet 1 | . . . . . . . 1 . . Operators 1 | . . . . . . . . 1 . Fabricators . | . . . . . . . . . . Repair Stations . | . . . . . . . . . . Recycling Units . | . . . . . . . . . . Scanalyzers . | . . . . . . . . . . Garrison Access . | . . . . . . . . . . Data Cores Recovered . | . . . . . . . . . . Used . | . . . . . . . . . . Hacking Detections 10 | . 1 . . . 3 . 3 3 . Full Trace Events 2 | . . . . . . . 1 1 . Feedback Events . | . . . . . . . . . . Feedback Blocked . | . . . . . . . . . . Robot Schematics Acquired . | . . . . . . . . . . Robots Built . | . . . . . . . . . . Matter . | . . . . . . . . . . Time . | . . . . . . . . . . Total Robot Build Rating . | . . . . . . . . . . Part Schematics Acquired . | . . . . . . . . . . Parts Built . | . . . . . . . . . . Matter . | . . . . . . . . . . Time . | . . . . . . . . . . Total Part Build Rating . | . . . . . . . . . . Parts Repaired 2 | . . . . . . . . 2 . Time 76 | . . . . . . . . 76 . Parts Recycled . | . . . . . . . . . . Recycled Matter . | . . . . . . . . . . Retrieved Matter . | . . . . . . . . . . Retrieved Components . | . . . . . . . . . . Parts Scanalyzed . | . . . . . . . . . . Part Schematics Acquired . | . . . . . . . . . . Parts Damaged . | . . . . . . . . . . Bothacking | -11 -10 -10 -10 -9 -8 -8 -8 -7 -7 ------------ Run | Scr Mat Min Exi Min Mat Gar Mat Fac Was Used RIF Installer . | . . . . . . . . . . Robots Hacked . | . . . . . . . . . . Non-combat . | . . . . . . . . . . Combat . | . . . . . . . . . . Robot Hacks Applied . | . . . . . . . . . . Relay Couplers Released . | . . . . . . . . . . Robots Rewired . | . . . . . . . . . . Allies Hacked . | . . . . . . . . . . Hacks Repelled . | . . . . . . . . . . Allies | -11 -10 -10 -10 -9 -8 -8 -8 -7 -7 -------- Run | Scr Mat Min Exi Min Mat Gar Mat Fac Was Total Allies . | . . . . . . . . . . Largest Group . | . . . . . . . . . . Highest-Rated Group . | . . . . . . . . . . Highest-Rated Ally . | . . . . . . . . . . Total Orders . | . . . . . . . . . . Ally Attacks . | . . . . . . . . . . Total Damage . | . . . . . . . . . . Kills . | . . . . . . . . . . Allies Corrupted . | . . . . . . . . . . Allies Melted . | . . . . . . . . . . Intel | -11 -10 -10 -10 -9 -8 -8 -8 -7 -7 ------- Run | Scr Mat Min Exi Min Mat Gar Mat Fac Was Robot Analysis Total 1 | . . . . . . . 1 . . Derelict Logs Recovered 5 | . . 2 . 3 . . . . . Drone Launches . | . . . . . . . . . . Drone Recoveries . | . . . . . . . . . . Exploration | -11 -10 -10 -10 -9 -8 -8 -8 -7 -7 ------------- Run | Scr Mat Min Exi Min Mat Gar Mat Fac Was Turns Passed 4377 | . 114 394 601 534 673 269 655 1018 119 Spaces Moved 2361 | 1 91 299 424 241 330 139 331 461 44 Core 2 | . . . . . . . . . 2 Treads 1473 | . . . . 170 330 139 331 461 42 Legs 886 | 1 91 299 424 71 . . . . . Wheels . | . . . . . . . . . . Hover . | . . . . . . . . . . Flight . | . . . . . . . . . . Fastest Speed 120 | 120 120 120 120 200 176 158 158 175 175 Average Speed 165 | 120 120 120 138 211 182 174 176 176 229 Slowest Speed 1350 | 120 120 120 240 240 200 178 178 178 1350 Overloaded Moves . | . . . . . . . . . . Propulsion Burnouts . | . . . . . . . . . . Robots Hopped . | . . . . . . . . . . Cave-ins Triggered . | . . . . . . . . . . Exploration Rate (%) 39 | 2 26 76 88 47 33 36 45 17 29 Regions Visited 9 Branch Regions 3 Pre-discovered Areas 1 | . . . . 1 . . . . . Known Exits Taken 2 | . . 1 . . 1 . . . . Unknown Exits Taken 5 | 1 1 . 1 1 . . 1 . . Scrap Searched 2 | . . . . 2 . . . . . Spaces Dug . | . . . . . . . . . . Terrain Destroyed 122 | . . . . . 4 . 2 116 . Melee . | . . . . . . . . . . Projectile 13 | . . . . . 4 . 2 7 . AOE 109 | . . . . . . . . 109 . Terrain Rammed . | . . . . . . . . . . Walls Destroyed . | . . . . . . . . . . Machines Disabled . | . . . . . . . . . . Actions | -11 -10 -10 -10 -9 -8 -8 -8 -7 -7 --------- Run | Scr Mat Min Exi Min Mat Gar Mat Fac Was Total 2738 | . 97 317 440 264 399 165 392 611 53 Wait 212 | . . 3 . 21 42 9 27 110 . Move 2354 | . 90 298 423 240 330 138 330 461 44 Hop . | . . . . . . . . . . Pick Up 45 | . 3 2 7 1 16 5 7 3 1 Fast Attach 11 | . . . 3 . . . 2 5 1 Attach 17 | . 1 . . . 5 3 4 2 2 Detach 4 | . . . . . 1 2 1 . . Swap 21 | . . 3 1 2 4 2 4 4 1 Drop 26 | . 3 1 6 . 1 3 10 2 . Fire 42 | . . 10 . . . 1 7 24 . Melee 4 | . . . . . . . . . 4 Ram . | . . . . . . . . . . Kick . | . . . . . . . . . . Crush . | . . . . . . . . . . Escape Stasis 2 | . . . . . . 2 . . . Rewire . | . . . . . . . . . . Trap . | . . . . . . . . . . Miscellaneous . | . . . . . . . . . . Route ------- -11/Scrapyard -10/Materials -10/Mines (discovered 2 exits: [*Mat] / *Exi) -10/Exiles -9/Mines -8/Materials -8/Garrison -8/Materials -7/Factory -7/Waste History --------- Turn | Location | Event 1 | -11/Scrapyard | Discovered new exit (range 0) 1 | -11/Scrapyard | Entered Materials 109 | -10/Materials | Discovered new exit (range 6) 115 | -10/Materials | Entered Mines 125 | -10/Mines | Identified exit to Exiles 307 | -10/Mines | Build established: Mutant 312 | -10/Mines | Assembled infested the area 317 | -10/Mines | Assisted by a Guerilla fighting off Assembled 361 | -10/Mines | Discovered new exit (range 5) 391 | -10/Mines | Learned Materials terminal intel 504 | -10/Mines | Deemed a non-threat by the Exiles lab entrance 509 | -10/Mines | Entered Exiles 539 | -10/Exiles | Met 8R-AWN 557 | -10/Exiles | Met EX-HEX 601 | -10/Exiles | Met EX-BIN 625 | -10/Exiles | Aligned with FarCom system 626 | -10/Exiles | Given EX-Vault access code 656 | -10/Exiles | Opened EX-Vault 668 | -10/Exiles | Found Prototype Slashing Weapon 669 | -10/Exiles | Identified Longsword +1 674 | -10/Exiles | Found Prototype Energy Cannon 674 | -10/Exiles | Identified YOLO Cannon 677 | -10/Exiles | Found Prototype Energy Gun 677 | -10/Exiles | Identified AWS/Thermal 704 | -10/Exiles | Warned to stay clear of 0b10 Research branches 739 | -10/Exiles | Met EX-DEC 783 | -10/Exiles | Visited The Gauntlet 1081 | -10/Exiles | Discovered new exit (range 14) 1110 | -10/Exiles | Left Exiles lab with AWS/Thermal 1110 | -10/Exiles | Entered Mines 1166 | -9/Mines | Learned Materials security intel 1255 | -9/Mines | Build established: Hauler-Mutant 1322 | -9/Mines | Learned Materials garrison access intel 1337 | -9/Mines | Learned location of Storage (-9) 1470 | -9/Mines | Learned location of 1 exit from Proximity Caves 1600 | -9/Mines | Discovered new exit (range 7) 1644 | -9/Mines | Entered Materials 1644 | -8/Materials | Evolved 4 slots: Propulsion x2, Utility x2 1646 | -8/Materials | Loaded intel: 11 terminal locations 1647 | -8/Materials | Loaded intel: 1 garrison access location 2317 | -8/Materials | Identified exit to Garrison 2317 | -8/Materials | Entered Garrison 2374 | -8/Garrison | Triggered checkpoint 2377 | -8/Garrison | Triggered checkpoint 2472 | -8/Garrison | Spotted B-75 Beast 2527 | -8/Garrison | Destroyed B-75 Beast 2575 | -8/Garrison | Discovered new exit (range 8) 2586 | -8/Garrison | Entered Materials 3147 | -8/Materials | Discovered new exit (range 11) 3241 | -8/Materials | Entered Factory 3241 | -7/Factory | Evolved 2 slots: Utility x2 3393 | -7/Factory | Build established: Scavenger-Mutant 3804 | -7/Factory | Repaired Lgt. Armor Plating 4017 | -7/Factory | Repaired Imp. Medium Treads 4076 | -7/Factory | Build established: Hauler-Mutant 4259 | -7/Factory | Sucked down chute 4259 | -7/Factory | Entered Waste 4274 | -7/Waste | EMP discharged 4274 | -7/Waste | System corruption reached 10% 4275 | -7/Waste | Spotted C-40 Crusher 4330 | -7/Waste | Crushed by Compactor (1 part destroyed, 2 dropped) 4334 | -7/Waste | Crushed by Compactor (1 part destroyed, 1 dropped) 4340 | -7/Waste | Crushed by Compactor (0 parts destroyed, 1 dropped) 4343 | -7/Waste | Crushed by Compactor (1 part destroyed) 4346 | -7/Waste | Crushed by Compactor (1 part destroyed) 4349 | -7/Waste | Crushed by Compactor (1 part destroyed) 4364 | -7/Waste | Crushed by Compactor (0 parts destroyed, 1 dropped) 4370 | -7/Waste | Crushed by Compactor (1 part destroyed) 4374 | -7/Waste | EMP discharged 4378 | -7/Waste | Self-destructed Last Messages --------------- 04334_ Hvy. Plasma Cannon crushed. 04337_ Mining Laser destroyed. 04340_ C-40 Crusher suffers critical hit. 04340_ Hrd. Medium Armor Plating crushed. 04342_ HXT=:PCG GZ=